[Event "January 2 Late 2024"]
[Site "https://www.chess.com"]
[Date "2024.01.02"]
[Round "6"]
[White "Jarocka, Liwia"]
[Black "Pham, Le Thao Nguyen"]
[Result "0-1"]
[Board "137"]
[TimeControl "180+1"]
[WhiteFideId "21807558"]
[BlackFideId "12401226"]
[WhiteElo "2398"]
[BlackElo "2532"]
[WhiteTeam "POL"]
[BlackTeam "VIE"]
[WhiteClock "0:00:21"]
[BlackClock "0:00:09"]

1. e4 {[%clk 0:03:00]}  c5 {[%clk 0:02:58]} 2. Nf3 {[%clk 0:02:59]}  e6 {[%clk 0:02:58]} 3. c3 {[%clk 0:02:59]}  d5 {[%clk 0:02:55]} 4. exd5 {[%clk 0:02:58]}  exd5 {[%clk 0:02:55]} 5. d4 {[%clk 0:02:59]}  Nc6 {[%clk 0:02:55]} 6. Bb5 {[%clk 0:02:58]}  Bd6 {[%clk 0:02:55]} 7. O-O {[%clk 0:02:58]}  Ne7 {[%clk 0:02:55]} 8. dxc5 {[%clk 0:02:58]}  Bxc5 {[%clk 0:02:56]} 9. Re1 {[%clk 0:02:58]}  O-O {[%clk 0:02:57]} 10. Bg5 {[%clk 0:02:57]}  Qc7 {[%clk 0:02:11]} 11. Nbd2 {[%clk 0:02:52]}  Bg4 {[%clk 0:02:04]} 12. h3 {[%clk 0:02:52]}  Bh5 {[%clk 0:02:04]} 13. Nb3 {[%clk 0:02:48]}  Bd6 {[%clk 0:02:03]} 14. Be2 {[%clk 0:02:48]}  a6 {[%clk 0:01:46]} 15. Nfd4 {[%clk 0:02:47]}  Bg6 {[%clk 0:01:46]} 16. Bf3 {[%clk 0:02:46]}  Rfe8 {[%clk 0:01:44]} 17. Qd2 {[%clk 0:02:41]}  h6 {[%clk 0:01:39]} 18. Bxe7 {[%clk 0:02:34]}  Nxe7 {[%clk 0:01:35]} 19. Rad1 {[%clk 0:02:28]}  Red8 {[%clk 0:01:34]} 20. Qe2 {[%clk 0:02:21]}  Nc6 {[%clk 0:01:19]} 21. Kh1 {[%clk 0:02:17]}  Bf8 {[%clk 0:01:11]} 22. Qd2 {[%clk 0:02:10]}  Ne5 {[%clk 0:01:08]} 23. Qc1 {[%clk 0:02:03]}  Nd3 {[%clk 0:00:55]} 24. Rxd3 {[%clk 0:01:57]}  Bxd3 {[%clk 0:00:55]} 25. Qd2 {[%clk 0:01:40]}  Bg6 {[%clk 0:00:47]} 26. Nc1 {[%clk 0:01:41]}  Qb6 {[%clk 0:00:43]} 27. Nce2 {[%clk 0:01:40]}  Be4 {[%clk 0:00:38]} 28. Nf4 {[%clk 0:01:34]}  Bxf3 {[%clk 0:00:21]} 29. Nxf3 {[%clk 0:01:35]}  Qa5 {[%clk 0:00:20]} 30. a3 {[%clk 0:01:33]}  Rd7 {[%clk 0:00:20]} 31. Ne5 {[%clk 0:01:32]}  Rd6 {[%clk 0:00:20]} 32. Qd3 {[%clk 0:01:25]}  Rad8 {[%clk 0:00:20]} 33. Qf5 {[%clk 0:01:25]}  Rf6 {[%clk 0:00:20]} 34. Qg4 {[%clk 0:01:25]}  Qb6 {[%clk 0:00:19]} 35. Re2 {[%clk 0:01:22]}  Qb5 {[%clk 0:00:14]} 36. Nh5 {[%clk 0:01:20]}  Rfd6 {[%clk 0:00:13]} 37. Qf3 {[%clk 0:01:15]}  f6 {[%clk 0:00:11]} 38. Ng4 {[%clk 0:01:10]}  Re8 {[%clk 0:00:10]} 39. Ne3 {[%clk 0:00:37]}  Qd7 {[%clk 0:00:10]} 40. Ng3 {[%clk 0:00:36]}  d4 {[%clk 0:00:09]} 41. cxd4 {[%clk 0:00:26]}  Rxd4 {[%clk 0:00:10]} 42. Kh2 {[%clk 0:00:26]}  Rd2 {[%clk 0:00:10]} 43. Rxd2 {[%clk 0:00:24]}  Qxd2 {[%clk 0:00:11]} 44. Qxb7 {[%clk 0:00:24]}  Qxf2 {[%clk 0:00:09]} 45. Qd5+ {[%clk 0:00:25]}  Kh8 {[%clk 0:00:08]} 46. Qf7 {[%clk 0:00:24]}  Qxe3 {[%clk 0:00:08]} 47. Nf5 {[%clk 0:00:21]}  Qe6 {[%clk 0:00:09]} 0-1

[Event "January 2 Late 2024"]
[Site "https://www.chess.com"]
[Date "2024.01.02"]
[Round "6"]
[White "Ismayil, Malak"]
[Black "Kanter, Eduard"]
[Result "1-0"]
[Board "138"]
[TimeControl "180+1"]
[WhiteFideId "13412604"]
[BlackFideId "4103963"]
[WhiteElo "2524"]
[BlackElo "2384"]
[WhiteTeam "AZE"]
[BlackTeam "RUS"]
[WhiteClock "0:00:06"]
[BlackClock "0:00:02"]

1. e4 {[%clk 0:03:00]}  c5 {[%clk 0:02:55]} 2. Nf3 {[%clk 0:02:55]}  a6 {[%clk 0:02:55]} 3. d4 {[%clk 0:02:53]}  cxd4 {[%clk 0:02:56]} 4. Nxd4 {[%clk 0:02:54]}  Nf6 {[%clk 0:02:56]} 5. e5 {[%clk 0:02:53]}  Qa5+ {[%clk 0:02:55]} 6. Nc3 {[%clk 0:02:51]}  Qxe5+ {[%clk 0:02:55]} 7. Be2 {[%clk 0:02:51]}  Nc6 {[%clk 0:02:40]} 8. Nf3 {[%clk 0:02:41]}  Qc7 {[%clk 0:02:32]} 9. Bg5 {[%clk 0:02:37]}  e6 {[%clk 0:02:29]} 10. Bxf6 {[%clk 0:02:35]}  gxf6 {[%clk 0:02:30]} 11. a3 {[%clk 0:02:24]}  b5 {[%clk 0:02:28]} 12. Ne4 {[%clk 0:02:20]}  Be7 {[%clk 0:02:26]} 13. Qd2 {[%clk 0:02:16]}  h5 {[%clk 0:02:02]} 14. h4 {[%clk 0:02:13]}  Bb7 {[%clk 0:01:59]} 15. Rd1 {[%clk 0:01:49]}  d5 {[%clk 0:01:51]} 16. Ng3 {[%clk 0:01:43]}  O-O-O {[%clk 0:01:46]} 17. c3 {[%clk 0:01:34]}  Ne5 {[%clk 0:01:26]} 18. Nd4 {[%clk 0:01:28]}  Ng4 {[%clk 0:01:21]} 19. Bxg4 {[%clk 0:01:23]}  hxg4 {[%clk 0:01:21]} 20. h5 {[%clk 0:01:22]}  f5 {[%clk 0:01:17]} 21. Qd3 {[%clk 0:01:12]}  Qe5+ {[%clk 0:01:14]} 22. Kd2 {[%clk 0:01:05]}  f4 {[%clk 0:01:10]} 23. Nge2 {[%clk 0:01:03]}  Bg5 {[%clk 0:01:08]} 24. Kc2 {[%clk 0:01:00]}  Qf6 {[%clk 0:01:02]} 25. Nb3 {[%clk 0:00:53]}  e5 {[%clk 0:00:50]} 26. Nc5 {[%clk 0:00:31]}  e4 {[%clk 0:00:45]} 27. Qd4 {[%clk 0:00:32]}  Qf5 {[%clk 0:00:40]} 28. Kb3 {[%clk 0:00:23]}  Bf6 {[%clk 0:00:40]} 29. Qd2 {[%clk 0:00:21]}  Be5 {[%clk 0:00:37]} 30. Nd4 {[%clk 0:00:20]}  Qf6 {[%clk 0:00:35]} 31. Ka2 {[%clk 0:00:18]}  Kb8 {[%clk 0:00:31]} 32. a4 {[%clk 0:00:17]}  bxa4 {[%clk 0:00:30]} 33. Nxa4 {[%clk 0:00:16]}  Rc8 {[%clk 0:00:26]} 34. Qc2 {[%clk 0:00:13]}  Rc4 {[%clk 0:00:16]} 35. Qb3 {[%clk 0:00:11]}  Bxd4 {[%clk 0:00:16]} 36. cxd4 {[%clk 0:00:11]}  Rxd4 {[%clk 0:00:17]} 37. Rc1 {[%clk 0:00:10]}  Qd6 {[%clk 0:00:17]} 38. Nc5 {[%clk 0:00:10]}  Qc6 {[%clk 0:00:07]} 39. Qc3 {[%clk 0:00:06]}  Qf6 {[%clk 0:00:04]} 40. Nd7+ {[%clk 0:00:06]}  Ka7 {[%clk 0:00:02]} 41. Nxf6 {[%clk 0:00:06]} 1-0

[Event "January 2 Late 2024"]
[Site "https://www.chess.com"]
[Date "2024.01.02"]
[Round "6"]
[White "Rangel, Daniel"]
[Black "RemcoSpr"]
[Result "0-1"]
[Board "139"]
[TimeControl "180+1"]
[WhiteFideId "2124475"]
[WhiteElo "2523"]
[BlackElo "2383"]
[WhiteTeam "BRA"]
[WhiteClock "0:00:00"]
[BlackClock "0:00:07"]

1. c4 {[%clk 0:02:58]}  e5 {[%clk 0:02:32]} 2. g3 {[%clk 0:02:59]}  Nf6 {[%clk 0:02:32]} 3. Bg2 {[%clk 0:02:59]}  c6 {[%clk 0:02:31]} 4. Nf3 {[%clk 0:02:57]}  e4 {[%clk 0:02:29]} 5. Nd4 {[%clk 0:02:57]}  d5 {[%clk 0:02:29]} 6. cxd5 {[%clk 0:02:58]}  Qxd5 {[%clk 0:02:28]} 7. Nc2 {[%clk 0:02:58]}  Qe5 {[%clk 0:02:07]} 8. Nc3 {[%clk 0:02:58]}  Bf5 {[%clk 0:02:05]} 9. O-O {[%clk 0:02:57]}  Nbd7 {[%clk 0:01:58]} 10. d4 {[%clk 0:02:57]}  Qe6 {[%clk 0:01:51]} 11. d5 {[%clk 0:02:46]}  Nxd5 {[%clk 0:01:38]} 12. Nd4 {[%clk 0:02:44]}  Qg6 {[%clk 0:01:25]} 13. Nxd5 {[%clk 0:02:34]}  cxd5 {[%clk 0:01:24]} 14. Qb3 {[%clk 0:02:28]}  Nb6 {[%clk 0:01:13]} 15. a4 {[%clk 0:02:15]}  Bc5 {[%clk 0:01:07]} 16. Nxf5 {[%clk 0:02:12]}  Qxf5 {[%clk 0:01:06]} 17. a5 {[%clk 0:02:09]}  Nd7 {[%clk 0:00:59]} 18. Qxb7 {[%clk 0:02:03]}  O-O {[%clk 0:00:57]} 19. Qb3 {[%clk 0:01:34]}  Rab8 {[%clk 0:00:50]} 20. Qc2 {[%clk 0:01:31]}  Rfc8 {[%clk 0:00:46]} 21. Qd1 {[%clk 0:01:28]}  Nf6 {[%clk 0:00:30]} 22. Ra2 {[%clk 0:01:14]}  d4 {[%clk 0:00:22]} 23. h3 {[%clk 0:01:08]}  h5 {[%clk 0:00:19]} 24. Bf4 {[%clk 0:01:05]}  Rb5 {[%clk 0:00:19]} 25. a6 {[%clk 0:00:56]}  Bb6 {[%clk 0:00:18]} 26. b3 {[%clk 0:00:52]}  d3 {[%clk 0:00:18]} 27. exd3 {[%clk 0:00:52]}  exd3 {[%clk 0:00:19]} 28. Rd2 {[%clk 0:00:50]}  Rd8 {[%clk 0:00:17]} 29. h4 {[%clk 0:00:37]}  Rb4 {[%clk 0:00:17]} 30. Bg5 {[%clk 0:00:32]}  Rbd4 {[%clk 0:00:13]} 31. Bxf6 {[%clk 0:00:31]}  gxf6 {[%clk 0:00:11]} 32. Kh2 {[%clk 0:00:29]}  Re8 {[%clk 0:00:10]} 33. Re1 {[%clk 0:00:26]}  Rxe1 {[%clk 0:00:09]} 34. Qxe1 {[%clk 0:00:26]}  Qe5 {[%clk 0:00:10]} 35. Qd1 {[%clk 0:00:25]}  Rd6 {[%clk 0:00:06]} 36. Rxd3 {[%clk 0:00:19]}  Rxd3 {[%clk 0:00:07]} 37. Qxd3 {[%clk 0:00:19]}  Bxf2 {[%clk 0:00:07]} 38. Bd5 {[%clk 0:00:18]}  Kg7 {[%clk 0:00:06]} 39. Qf3 {[%clk 0:00:16]}  Bc5 {[%clk 0:00:04]} 40. Bc4 {[%clk 0:00:16]}  Bd6 {[%clk 0:00:04]} 41. Kh3 {[%clk 0:00:15]}  Kg6 {[%clk 0:00:02]} 42. Qd3+ {[%clk 0:00:13]}  f5 {[%clk 0:00:02]} 43. Qf3 {[%clk 0:00:11]}  Kf6 {[%clk 0:00:02]} 44. Bd3 {[%clk 0:00:08]}  Qc5 {[%clk 0:00:02]} 45. Qxh5 {[%clk 0:00:05]}  Qe3 {[%clk 0:00:02]} 46. Qxf5+ {[%clk 0:00:05]}  Kg7 {[%clk 0:00:02]} 47. Qg4+ {[%clk 0:00:05]}  Kf8 {[%clk 0:00:03]} 48. Bf5 {[%clk 0:00:04]}  Qe1 {[%clk 0:00:03]} 49. Kg2 {[%clk 0:00:03]}  Qd2+ {[%clk 0:00:03]} 50. Kh3 {[%clk 0:00:03]}  Qe1 {[%clk 0:00:03]} 51. Kg2 {[%clk 0:00:03]}  Qd2+ {[%clk 0:00:03]} 52. Kf1 {[%clk 0:00:03]}  Bc5 {[%clk 0:00:03]} 53. Qf3 {[%clk 0:00:04]}  Qc1+ {[%clk 0:00:03]} 54. Kg2 {[%clk 0:00:03]}  Qb2+ {[%clk 0:00:04]} 55. Kh3 {[%clk 0:00:04]}  Qd4 {[%clk 0:00:05]} 56. Be4 {[%clk 0:00:03]}  Qd6 {[%clk 0:00:05]} 57. h5 {[%clk 0:00:04]}  Bb6 {[%clk 0:00:06]} 58. Bf5 {[%clk 0:00:04]}  Bc7 {[%clk 0:00:06]} 59. Kg4 {[%clk 0:00:03]}  Ke7 {[%clk 0:00:06]} 60. Kh3 {[%clk 0:00:04]}  Qf6 {[%clk 0:00:07]} 61. Qe4+ {[%clk 0:00:04]}  Kf8 {[%clk 0:00:07]} 62. Qf3 {[%clk 0:00:04]}  Qg5 {[%clk 0:00:07]} 63. Qg4 {[%clk 0:00:04]}  Qe3 {[%clk 0:00:06]} 64. Be4 {[%clk 0:00:03]}  Qe1 {[%clk 0:00:06]} 65. Qh4 {[%clk 0:00:03]}  Qf1+ {[%clk 0:00:06]} 66. Bg2 {[%clk 0:00:03]}  Qf2 {[%clk 0:00:06]} 67. h6 {[%clk 0:00:03]}  Qf5+ {[%clk 0:00:07]} 68. Kh2 {[%clk 0:00:03]}  Qh7 {[%clk 0:00:07]} 69. Be4 {[%clk 0:00:02]}  Qh8 {[%clk 0:00:07]} 70. h7 {[%clk 0:00:03]}  Be5 {[%clk 0:00:07]} 71. Bg2 {[%clk 0:00:04]}  Kg7 {[%clk 0:00:07]} 72. Qb4 {[%clk 0:00:04]}  Qxh7+ {[%clk 0:00:07]} 73. Qh4 {[%clk 0:00:00]}  Qxh4+ {[%clk 0:00:07]} 0-1

[Event "January 2 Late 2024"]
[Site "https://www.chess.com"]
[Date "2024.01.02"]
[Round "6"]
[White "Marcziter, Dmitrii"]
[Black "Korpics, Zsolt"]
[Result "1-0"]
[Board "141"]
[TimeControl "180+1"]
[WhiteFideId "13900765"]
[BlackFideId "705241"]
[WhiteElo "2374"]
[BlackElo "2510"]
[WhiteTeam "GER"]
[BlackTeam "HUN"]
[WhiteClock "0:00:09"]
[BlackClock "0:00:00"]

1. d4 {[%clk 0:03:00]}  Nf6 {[%clk 0:03:00]} 2. c4 {[%clk 0:03:00]}  e6 {[%clk 0:03:00]} 3. Nf3 {[%clk 0:02:57]}  b6 {[%clk 0:03:00]} 4. a3 {[%clk 0:02:56]}  Ba6 {[%clk 0:02:59]} 5. Qc2 {[%clk 0:02:55]}  Bb7 {[%clk 0:03:00]} 6. Nc3 {[%clk 0:02:55]}  c5 {[%clk 0:03:00]} 7. e4 {[%clk 0:02:54]}  cxd4 {[%clk 0:03:00]} 8. Nxd4 {[%clk 0:02:55]}  Bc5 {[%clk 0:03:00]} 9. Nb3 {[%clk 0:02:56]}  Nc6 {[%clk 0:03:00]} 10. Be2 {[%clk 0:02:55]}  Nd4 {[%clk 0:02:54]} 11. Nxd4 {[%clk 0:02:53]}  Bxd4 {[%clk 0:02:55]} 12. Bf4 {[%clk 0:02:36]}  O-O {[%clk 0:02:42]} 13. f3 {[%clk 0:02:24]}  Nh5 {[%clk 0:02:36]} 14. Bd6 {[%clk 0:02:24]}  Re8 {[%clk 0:02:33]} 15. O-O-O {[%clk 0:02:23]}  Be3+ {[%clk 0:02:32]} 16. Kb1 {[%clk 0:02:23]}  Nf4 {[%clk 0:02:06]} 17. g3 {[%clk 0:02:17]}  Nxe2 {[%clk 0:02:06]} 18. Qxe2 {[%clk 0:02:15]}  Bc5 {[%clk 0:02:06]} 19. Nb5 {[%clk 0:01:33]}  Bd5 {[%clk 0:00:23]} 20. cxd5 {[%clk 0:01:12]}  Bxd6 {[%clk 0:00:11]} 21. Nxd6 {[%clk 0:01:10]}  Rf8 {[%clk 0:00:11]} 22. dxe6 {[%clk 0:01:09]}  fxe6 {[%clk 0:00:11]} 23. Rd2 {[%clk 0:01:06]}  Qf6 {[%clk 0:00:10]} 24. f4 {[%clk 0:01:04]}  e5 {[%clk 0:00:06]} 25. f5 {[%clk 0:01:02]}  Qh6 {[%clk 0:00:05]} 26. Rhd1 {[%clk 0:00:56]}  Rf6 {[%clk 0:00:05]} 27. Nc4 {[%clk 0:00:53]}  d5 {[%clk 0:00:03]} 28. Rxd5 {[%clk 0:00:37]}  Raf8 {[%clk 0:00:02]} 29. Qd2 {[%clk 0:00:16]}  Qh5 {[%clk 0:00:02]} 30. Rd8 {[%clk 0:00:15]}  g6 {[%clk 0:00:02]} 31. Qd5+ {[%clk 0:00:14]}  Kg7 {[%clk 0:00:02]} 32. Rxf8 {[%clk 0:00:13]}  Rxf8 {[%clk 0:00:03]} 33. Qxe5+ {[%clk 0:00:13]}  Kh6 {[%clk 0:00:03]} 34. Qf4+ {[%clk 0:00:12]}  Kg7 {[%clk 0:00:03]} 35. Rd7+ {[%clk 0:00:12]}  Kg8 {[%clk 0:00:03]} 36. Qe5 {[%clk 0:00:10]}  Qd1+ {[%clk 0:00:00]} 37. Rxd1 {[%clk 0:00:09]} 1-0

[Event "January 2 Late 2024"]
[Site "https://www.chess.com"]
[Date "2024.01.02"]
[Round "6"]
[White "Paragua, Megan Althea"]
[Black "Horak, Martin"]
[Result "0-1"]
[Board "142"]
[TimeControl "180+1"]
[WhiteFideId "30973007"]
[BlackFideId "367095"]
[WhiteElo "2374"]
[BlackElo "2505"]
[WhiteTeam "USA"]
[BlackTeam "CZE"]
[WhiteClock "0:00:33"]
[BlackClock "0:00:25"]

1. e4 {[%clk 0:02:55]}  c5 {[%clk 0:02:59]} 2. Nf3 {[%clk 0:02:52]}  a6 {[%clk 0:03:00]} 3. c3 {[%clk 0:02:47]}  d5 {[%clk 0:02:59]} 4. exd5 {[%clk 0:02:45]}  Qxd5 {[%clk 0:03:00]} 5. d4 {[%clk 0:02:45]}  e6 {[%clk 0:03:00]} 6. Be2 {[%clk 0:02:45]}  Nf6 {[%clk 0:03:00]} 7. O-O {[%clk 0:02:45]}  Nc6 {[%clk 0:03:01]} 8. Be3 {[%clk 0:02:42]}  cxd4 {[%clk 0:02:53]} 9. Nxd4 {[%clk 0:02:41]}  Nxd4 {[%clk 0:02:51]} 10. Bxd4 {[%clk 0:02:34]}  Bc5 {[%clk 0:02:32]} 11. Bxf6 {[%clk 0:02:16]}  Qxd1 {[%clk 0:02:32]} 12. Rxd1 {[%clk 0:02:14]}  gxf6 {[%clk 0:02:32]} 13. Nd2 {[%clk 0:02:15]}  Ke7 {[%clk 0:02:21]} 14. Ne4 {[%clk 0:02:08]}  Ba7 {[%clk 0:02:09]} 15. Nd6 {[%clk 0:02:04]}  Rb8 {[%clk 0:01:59]} 16. Nxc8+ {[%clk 0:02:02]}  Rhxc8 {[%clk 0:01:58]} 17. Rd2 {[%clk 0:01:58]}  Rc7 {[%clk 0:01:52]} 18. Rad1 {[%clk 0:01:58]}  b5 {[%clk 0:01:51]} 19. a3 {[%clk 0:01:36]}  a5 {[%clk 0:01:50]} 20. Bd3 {[%clk 0:01:28]}  f5 {[%clk 0:01:28]} 21. Kf1 {[%clk 0:01:25]}  Kf6 {[%clk 0:01:26]} 22. Be2 {[%clk 0:01:23]}  Ke7 {[%clk 0:01:16]} 23. Bd3 {[%clk 0:01:22]}  h5 {[%clk 0:01:05]} 24. h4 {[%clk 0:01:18]}  Kf6 {[%clk 0:00:49]} 25. Be2 {[%clk 0:01:15]}  Kg6 {[%clk 0:00:47]} 26. Rd7 {[%clk 0:01:13]}  Rcb7 {[%clk 0:00:37]} 27. Bxb5 {[%clk 0:00:47]}  Rxb5 {[%clk 0:00:33]} 28. Rxa7 {[%clk 0:00:47]}  Rxb2 {[%clk 0:00:33]} 29. Rxa5 {[%clk 0:00:47]}  Rc2 {[%clk 0:00:29]} 30. Ra4 {[%clk 0:00:42]}  e5 {[%clk 0:00:25]} 31. Rf4 {[%clk 0:00:33]}  exf4 {[%clk 0:00:25]} 0-1

[Event "January 2 Late 2024"]
[Site "https://www.chess.com"]
[Date "2024.01.02"]
[Round "6"]
[White "Osmak, Yuliia"]
[Black "Obon Temprano, Sergi"]
[Result "1-0"]
[Board "143"]
[TimeControl "180+1"]
[WhiteFideId "14101602"]
[BlackFideId "2226545"]
[WhiteElo "2505"]
[BlackElo "2362"]
[WhiteTeam "UKR"]
[BlackTeam "ESP"]
[WhiteClock "0:00:06"]
[BlackClock "0:00:10"]

1. Nf3 {[%clk 0:03:00]}  d5 {[%clk 0:02:59]} 2. g3 {[%clk 0:03:00]}  Nf6 {[%clk 0:03:00]} 3. Bg2 {[%clk 0:03:01]}  c6 {[%clk 0:03:00]} 4. O-O {[%clk 0:03:01]}  Bf5 {[%clk 0:03:00]} 5. c4 {[%clk 0:03:00]}  e6 {[%clk 0:03:00]} 6. d3 {[%clk 0:03:00]}  h6 {[%clk 0:02:59]} 7. b3 {[%clk 0:02:57]}  Bh7 {[%clk 0:02:58]} 8. Bb2 {[%clk 0:02:57]}  Nbd7 {[%clk 0:02:57]} 9. Nbd2 {[%clk 0:02:50]}  Be7 {[%clk 0:02:58]} 10. a3 {[%clk 0:02:50]}  O-O {[%clk 0:02:57]} 11. b4 {[%clk 0:02:49]}  Qc7 {[%clk 0:02:56]} 12. Rc1 {[%clk 0:02:40]}  a5 {[%clk 0:02:48]} 13. b5 {[%clk 0:02:38]}  cxb5 {[%clk 0:02:45]} 14. cxd5 {[%clk 0:02:34]}  Qb6 {[%clk 0:02:39]} 15. dxe6 {[%clk 0:02:33]}  Qxe6 {[%clk 0:02:37]} 16. Nd4 {[%clk 0:02:32]}  Qb6 {[%clk 0:02:31]} 17. e4 {[%clk 0:02:28]}  b4 {[%clk 0:02:21]} 18. Nc4 {[%clk 0:02:26]}  Qa6 {[%clk 0:02:11]} 19. a4 {[%clk 0:02:09]}  Rac8 {[%clk 0:01:58]} 20. Nb5 {[%clk 0:02:08]}  Nb6 {[%clk 0:01:46]} 21. e5 {[%clk 0:01:52]}  Nfd5 {[%clk 0:01:35]} 22. Nxb6 {[%clk 0:01:47]}  Nxb6 {[%clk 0:01:31]} 23. d4 {[%clk 0:01:22]}  Rxc1 {[%clk 0:01:18]} 24. Bxc1 {[%clk 0:01:21]}  Rc8 {[%clk 0:01:15]} 25. d5 {[%clk 0:01:20]}  Bc2 {[%clk 0:01:08]} 26. Qg4 {[%clk 0:01:15]}  f5 {[%clk 0:00:55]} 27. exf6 {[%clk 0:00:28]}  Bxf6 {[%clk 0:00:54]} 28. Qe6+ {[%clk 0:00:28]}  Kh7 {[%clk 0:00:48]} 29. Nd6 {[%clk 0:00:24]}  Rd8 {[%clk 0:00:22]} 30. Nf7 {[%clk 0:00:20]}  Nxa4 {[%clk 0:00:20]} 31. Nxd8 {[%clk 0:00:19]}  Bxd8 {[%clk 0:00:21]} 32. Be4+ {[%clk 0:00:15]}  Bxe4 {[%clk 0:00:20]} 33. Qxe4+ {[%clk 0:00:16]}  Qg6 {[%clk 0:00:20]} 34. Qc4 {[%clk 0:00:14]}  Nb6 {[%clk 0:00:19]} 35. Qb5 {[%clk 0:00:13]}  Nc8 {[%clk 0:00:19]} 36. Qxb7 {[%clk 0:00:12]}  Nd6 {[%clk 0:00:19]} 37. Qb8 {[%clk 0:00:11]}  Nf7 {[%clk 0:00:18]} 38. Bf4 {[%clk 0:00:09]}  a4 {[%clk 0:00:17]} 39. Qxb4 {[%clk 0:00:07]}  h5 {[%clk 0:00:15]} 40. Qxa4 {[%clk 0:00:07]}  h4 {[%clk 0:00:15]} 41. Re1 {[%clk 0:00:06]}  h3 {[%clk 0:00:16]} 42. Qe4 {[%clk 0:00:06]}  Ng5 {[%clk 0:00:13]} 43. Qxg6+ {[%clk 0:00:06]}  Kxg6 {[%clk 0:00:14]} 44. Bxg5 {[%clk 0:00:06]}  Kxg5 {[%clk 0:00:14]} 45. Re8 {[%clk 0:00:05]}  Bb6 {[%clk 0:00:13]} 46. Kf1 {[%clk 0:00:05]}  Kf6 {[%clk 0:00:14]} 47. Ke2 {[%clk 0:00:05]}  Kf7 {[%clk 0:00:15]} 48. Re6 {[%clk 0:00:05]}  Bc5 {[%clk 0:00:14]} 49. f3 {[%clk 0:00:06]}  g5 {[%clk 0:00:14]} 50. f4 {[%clk 0:00:06]}  Bg1 {[%clk 0:00:14]} 51. fxg5 {[%clk 0:00:05]}  Bxh2 {[%clk 0:00:14]} 52. Kf3 {[%clk 0:00:06]}  Bg1 {[%clk 0:00:14]} 53. Rh6 {[%clk 0:00:06]}  h2 {[%clk 0:00:15]} 54. Kg2 {[%clk 0:00:06]}  Kg7 {[%clk 0:00:14]} 55. Rxh2 {[%clk 0:00:07]}  Bc5 {[%clk 0:00:10]} 56. Rh6 {[%clk 0:00:06]} 1-0

[Event "January 2 Late 2024"]
[Site "https://www.chess.com"]
[Date "2024.01.02"]
[Round "6"]
[White "CRObliterator"]
[Black "Gaal, Zsoka"]
[Result "1-0"]
[Board "144"]
[TimeControl "180+1"]
[BlackFideId "777765"]
[WhiteElo "2356"]
[BlackElo "2503"]
[BlackTeam "HUN"]
[WhiteClock "0:00:15"]
[BlackClock "0:00:47"]

1. e4 {[%clk 0:03:00]}  c6 {[%clk 0:02:59]} 2. d4 {[%clk 0:02:52]}  d5 {[%clk 0:02:55]} 3. f3 {[%clk 0:02:52]}  e6 {[%clk 0:02:49]} 4. Nc3 {[%clk 0:02:52]}  Nf6 {[%clk 0:02:44]} 5. e5 {[%clk 0:02:51]}  Nfd7 {[%clk 0:02:44]} 6. f4 {[%clk 0:02:51]}  g6 {[%clk 0:02:41]} 7. Nf3 {[%clk 0:02:51]}  c5 {[%clk 0:02:38]} 8. Be3 {[%clk 0:02:51]}  Nc6 {[%clk 0:02:37]} 9. Qd2 {[%clk 0:02:50]}  cxd4 {[%clk 0:02:29]} 10. Nxd4 {[%clk 0:02:50]}  Nxd4 {[%clk 0:02:25]} 11. Bxd4 {[%clk 0:02:49]}  Bc5 {[%clk 0:02:23]} 12. O-O-O {[%clk 0:02:42]}  a6 {[%clk 0:02:19]} 13. h4 {[%clk 0:02:40]}  h5 {[%clk 0:02:12]} 14. Be2 {[%clk 0:02:38]}  b5 {[%clk 0:02:08]} 15. Bf3 {[%clk 0:02:24]}  Bb7 {[%clk 0:02:04]} 16. Kb1 {[%clk 0:02:19]}  Qb6 {[%clk 0:02:03]} 17. Bxc5 {[%clk 0:02:17]}  Nxc5 {[%clk 0:02:01]} 18. b4 {[%clk 0:01:52]}  Na4 {[%clk 0:01:53]} 19. Nxa4 {[%clk 0:01:50]}  bxa4 {[%clk 0:01:54]} 20. c4 {[%clk 0:01:45]}  Rd8 {[%clk 0:01:52]} 21. c5 {[%clk 0:01:40]}  Qb5 {[%clk 0:01:48]} 22. Ka1 {[%clk 0:01:32]}  d4 {[%clk 0:01:42]} 23. Bxb7 {[%clk 0:01:25]}  Qxb7 {[%clk 0:01:43]} 24. Qb2 {[%clk 0:01:05]}  d3 {[%clk 0:01:39]} 25. Rh3 {[%clk 0:01:03]}  Qe4 {[%clk 0:01:34]} 26. Qd2 {[%clk 0:00:53]}  O-O {[%clk 0:01:29]} 27. Rxd3 {[%clk 0:00:37]}  Rxd3 {[%clk 0:01:28]} 28. Qxd3 {[%clk 0:00:38]}  Qxb4 {[%clk 0:01:29]} 29. c6 {[%clk 0:00:34]}  Qxf4 {[%clk 0:01:28]} 30. Qc3 {[%clk 0:00:30]}  Qxh4 {[%clk 0:01:08]} 31. c7 {[%clk 0:00:26]}  Rc8 {[%clk 0:01:05]} 32. Qc5 {[%clk 0:00:20]}  Kg7 {[%clk 0:01:03]} 33. Kb2 {[%clk 0:00:19]}  Qg4 {[%clk 0:00:55]} 34. Rd8 {[%clk 0:00:16]}  Qxg2+ {[%clk 0:00:55]} 35. Ka3 {[%clk 0:00:15]}  Qb7 {[%clk 0:00:50]} 36. Qf8+ {[%clk 0:00:15]}  Kh7 {[%clk 0:00:47]} 37. Qh8# {[%clk 0:00:15]} 1-0

[Event "January 2 Late 2024"]
[Site "https://www.chess.com"]
[Date "2024.01.02"]
[Round "6"]
[White "Arias Igual, Alejandro"]
[Black "xakevicius91"]
[Result "1-0"]
[Board "145"]
[TimeControl "180+1"]
[WhiteFideId "2254905"]
[WhiteElo "2355"]
[BlackElo "2503"]
[WhiteTeam "ESP"]
[WhiteClock "0:00:03"]
[BlackClock "0:00:19"]

1. e4 {[%clk 0:03:00]}  c5 {[%clk 0:02:58]} 2. Nf3 {[%clk 0:03:00]}  a6 {[%clk 0:02:59]} 3. g3 {[%clk 0:02:57]}  Nc6 {[%clk 0:02:53]} 4. Bg2 {[%clk 0:02:57]}  g6 {[%clk 0:02:49]} 5. O-O {[%clk 0:02:56]}  Bg7 {[%clk 0:02:49]} 6. c3 {[%clk 0:02:56]}  e5 {[%clk 0:02:49]} 7. d3 {[%clk 0:02:46]}  Nge7 {[%clk 0:02:47]} 8. Nbd2 {[%clk 0:02:45]}  d6 {[%clk 0:02:47]} 9. a4 {[%clk 0:02:43]}  O-O {[%clk 0:02:46]} 10. Nc4 {[%clk 0:02:43]}  Be6 {[%clk 0:02:44]} 11. h3 {[%clk 0:02:38]}  f6 {[%clk 0:02:43]} 12. Qe2 {[%clk 0:02:33]}  d5 {[%clk 0:02:42]} 13. exd5 {[%clk 0:02:30]}  Bxd5 {[%clk 0:02:35]} 14. Be3 {[%clk 0:02:18]}  b5 {[%clk 0:02:34]} 15. axb5 {[%clk 0:02:11]}  axb5 {[%clk 0:02:35]} 16. Rxa8 {[%clk 0:02:10]}  Qxa8 {[%clk 0:02:35]} 17. Nb6 {[%clk 0:02:10]}  Qd8 {[%clk 0:02:19]} 18. Bxc5 {[%clk 0:02:01]}  Re8 {[%clk 0:02:18]} 19. Nxd5 {[%clk 0:01:57]}  Nxd5 {[%clk 0:02:14]} 20. Ra1 {[%clk 0:01:51]}  f5 {[%clk 0:02:13]} 21. Ra6 {[%clk 0:01:38]}  Qc8 {[%clk 0:02:08]} 22. Ra1 {[%clk 0:01:14]}  Qd8 {[%clk 0:02:01]} 23. Qc2 {[%clk 0:01:07]}  h6 {[%clk 0:01:40]} 24. Qb3 {[%clk 0:01:01]}  e4 {[%clk 0:01:40]} 25. dxe4 {[%clk 0:00:53]}  fxe4 {[%clk 0:01:41]} 26. Nh4 {[%clk 0:00:51]}  Kh7 {[%clk 0:01:39]} 27. Qxb5 {[%clk 0:00:49]}  Ne5 {[%clk 0:00:57]} 28. Ra7 {[%clk 0:00:38]}  e3 {[%clk 0:00:46]} 29. Bxd5 {[%clk 0:00:26]}  e2 {[%clk 0:00:41]} 30. Qxe2 {[%clk 0:00:14]}  Qxd5 {[%clk 0:00:41]} 31. Bd4 {[%clk 0:00:12]}  h5 {[%clk 0:00:33]} 32. Qc2 {[%clk 0:00:11]}  Re6 {[%clk 0:00:23]} 33. Kh2 {[%clk 0:00:06]}  Qc6 {[%clk 0:00:20]} 34. f4 {[%clk 0:00:06]}  Nf3+ {[%clk 0:00:19]} 35. Nxf3 {[%clk 0:00:06]}  Qxf3 {[%clk 0:00:19]} 36. Rxg7+ {[%clk 0:00:05]}  Kh6 {[%clk 0:00:20]} 37. Be5 {[%clk 0:00:04]}  Rxe5 {[%clk 0:00:19]} 38. Qxg6# {[%clk 0:00:03]} 1-0